Cogmind - Beta 13 @@@ ROGUE MODE // 2024.04.05 @ 18:36:31 Player: Rizzen Result: Destroyed by H-66 Slayer with Gauss Rifle Performance ------------- Evolutions (4) 2000 Regions Visited (5) 1000 Robots Destroyed (79) 395 Value Destroyed (2281) 2281 Prototype IDs (16) 320 Alien Tech Used (0) 0 Bonus (25) 25 TOTAL SCORE: 6021 Bonus ------- Follower Combat Kills 25 Cogmind --------- Core Integrity 0/850 Matter 232/300 Energy 27/100 System Corruption 6% Temperature Cool (0) Movement Core (50) Location -6/Factory Parts ------- > --- POWER (2) -------- (None) > --- PROPULSION (3) --- (None) > --- UTILITY (7) ------ Advanced Melee Analysis Suite > --- WEAPON (3) ------- (None) > --- INVENTORY (5) ---- Xenon Bombardment Thruster Target Analyzer Thermic Laser Thermic Laser Peak State ------------ > --- POWER ------------ Cold Fusion Reactor Meta Core > --- PROPULSION ------- Carbon-fiber Leg Carbon-fiber Leg Carbon-fiber Leg > --- UTILITY ---------- Advanced Heat Sink High-capacity Storage Unit Improved Signal Interpreter Target Analyzer Improved Medium Armor Plating Hacking Suite System Shield > --- WEAPON ----------- Precision Shock Rifle Heavy Laser Gatling Laser > --- INVENTORY -------- Light Angular Momentum Engine Light Angular Momentum Engine Carbon-fiber Leg Improved Heat Sink Signal Interpreter Target Analyzer Target Analyzer ECM Suite Improved Light Armor Plating Improved Shield Generator Drone Bay Precision Shock Rifle Thermic Laser Thermic Laser Thermic Laser Thermic Laser Thermic Laser Missile Launcher Ripper [Rating: 70] Favorites ----------- Power Meta Core Engine Ion Engine Power Core Meta Core Reactor Cold Fusion Reactor Propulsion Light Treads Treads Light Treads Leg Carbon-fiber Leg Flight Unit Xenon Bombardment Thruster Utility High-capacity Storage Unit Device Advanced Heat Sink Storage High-capacity Storage Unit Processor Signal Interpreter Hackware Hacking Suite Protection Improved Medium Armor Plating Weapon Autogun Energy Gun Particle Gun Energy Cannon Beam Cannon Ballistic Gun Autogun Launcher Rocket Launcher Slashing Weapon Ripper Build | -11 -10 -10 -10 -8 -6 ------- Run | Yrd Mat Min Sub Rec Fac Slots Evolved 8 | . . . . . 8 Power 1 | . . . . . 1 Propulsion 1 | . . . . . 1 Utility 5 | . . . . . 5 Weapon 1 | . . . . . 1 Parts Attached 107 | 6 18 . 27 7 49 Power 10 | 1 4 . 1 . 4 Engine 7 | 1 4 . . . 2 Core 2 | . . . 1 . 1 Reactor 1 | . . . . . 1 Propulsion 21 | 2 2 . 3 2 12 Treads 14 | 2 2 . 3 2 5 Leg 4 | . . . . . 4 Wheel . | . . . . . . Hover . | . . . . . . Flight 3 | . . . . . 3 Utility 27 | 1 4 . 3 1 18 Device 8 | . . . 2 . 6 Storage 4 | 1 3 . . . . Processor 6 | . 1 . 1 . 4 Hackware 2 | . . . . 1 1 Protection 7 | . . . . . 7 Artifact . | . . . . . . Weapon 49 | 2 8 . 20 4 15 Energy Gun 9 | 1 . . 1 . 7 Energy Cannon 4 | . 3 . . . 1 Ballistic Gun 25 | 1 4 . 14 2 4 Ballistic Cannon . | . . . . . . Launcher 2 | . 1 . . . 1 Special Weapon . | . . . . . . Impact Weapon . | . . . . . . Slashing Weapon 9 | . . . 5 2 2 Piercing Weapon . | . . . . . . Special Melee Weapon . | . . . . . . Unidentified Prototypes 2 | . . . . . 2 Parts Lost 33 | . . . 3 . 30 Power 1 | . . . . . 1 Propulsion 11 | . . . . . 11 Utility 10 | . . . 2 . 8 Weapon 11 | . . . 1 . 10 Highest Loss Streak 12 | . . . 1 . 12 To Critical Strikes 1 | . . . 1 . . Average Slot Usage (%) 97 | . 99 93 98 100 91 Engine 5 | . 14 14 2 . . Core 6 | . . . 9 11 9 Treads 27 | . 28 28 31 33 7 Leg 1 | . . . . . 9 Device 1 | . . . 1 . 3 Storage 11 | . 14 14 11 11 5 Processor 10 | . 13 14 10 1 12 Hackware 2 | . . . . 9 11 Energy Gun 6 | . . . 9 11 10 Energy Cannon 2 | . 11 . . . . Ballistic Gun 18 | . 15 21 21 20 6 Naked Turns 33 | . . . . . 33 Heaviest Build 81 | 13 51 51 56 56 81 Greatest Support 80 | 40 40 40 60 60 80 Greatest Overweight (x) 4 | . 2 1 1 . 4 Average Overweight (x) . | . . 1 . . . Largest Inventory Capacity 20 | 8 20 20 20 20 20 Average Capacity 19 | 7 16 20 20 20 19 Most Carried 20 | 5 17 19 20 20 19 Average Carried 16 | 2 12 16 17 18 13 Final Capacity 20 | 8 20 20 20 20 5 Final Carried 20 | 2 16 19 16 20 4 Class Distribution -------------------- 45% | Mutant 35% | Skirmisher 10% | Gunner 6% | Scavenger-Gunner 3% | Scavenger-Tank Dominant Class ---------------- Mutant | -10/Materials Mutant | -10/Mines Skirmisher | -10/Subcaves Gunner | -8/Recycling Scavenger-Gunner | -6/Factory Resources | -11 -10 -10 -10 -8 -6 ----------- Run | Yrd Mat Min Sub Rec Fac Matter Collected 2308 | 260 535 21 706 231 555 Remotely . | . . . . . . Salvage Created 3574 | . 739 . 455 1519 861 Parts 182 | . 52 . 37 57 36 Haulers Intercepted 4 | . 2 . . 2 . Recyclers Shooed 3 | . . . . 2 1 Parts Field Recycled . | . . . . . . Retrieved Matter . | . . . . . . Parts Self-Destructed 22 | . . . 22 . . Prevented . | . . . . . . Kills | -11 -10 -10 -10 -8 -6 ------- Run | Yrd Mat Min Sub Rec Fac Combat Hostiles Destroyed 49 | . 15 . 12 8 14 Melee 7 | . . . . 5 2 Guns 36 | . 10 . 12 3 11 Cannons 5 | . 5 . . . . AOE 1 | . . . . . 1 Classes Destroyed 17 | . 6 . 2 6 3 Worker 6 | . 2 . . 1 3 Builder 1 | . . . . 1 . Tunneler 1 | . . . . 1 . Hauler 4 | . 2 . . 2 . Recycler 9 | . . . . 9 . Mechanic 2 | . . . . . 2 Operator 1 | . 1 . . . . Turret 2 | . . . 2 . . Watcher 4 | . 3 . . . 1 Swarmer 7 | . 3 . 3 1 . Grunt 19 | . 12 . 1 2 4 Duelist 1 | . . . . . 1 Protector 2 | . . . . 1 1 Sentry 6 | . . . . 3 3 Demolisher 1 | . . . . 1 . Programmer 5 | . . . . . 5 Subdweller 8 | . . . 8 . . Best Kill Streak 5 | . 4 . 5 5 3 Combat Bots Only 3 | . 3 . 3 3 2 Max Kills in Single Turn 3 | . 1 . 1 1 3 Gunslinging . | . . . . . . Exploded 1 | . . . . . 1 Melee 1 | . . . . 1 1 Uniques/NPCs Destroyed . | . . . . . . Combat | -11 -10 -10 -10 -8 -6 -------- Run | Yrd Mat Min Sub Rec Fac Hostile Shots Fired 556 | . 81 . 58 16 401 Missed 167 | . 23 . 16 4 124 Damage Taken 5899 | . 582 . 785 187 4345 Core 1015 | . 51 . 92 13 859 Absorbed by Shields 85 | . . . . . 85 Regen/Repaired (Parts) 300 | . 300 . . . . Core Remaining (%) 68 | 100 . . . 37 . Volleys Fired 188 | . 68 . 44 23 53 Largest 4 | . 2 . 3 3 4 Hottest 204 | . 120 . 111 126 204 Shots Fired 461 | . 133 3 105 64 156 Gun 410 | . 89 3 105 64 149 Cannon 49 | . 43 . . . 6 Launcher 2 | . 1 . . . 1 Special . | . . . . . . Kinetic 293 | . 89 3 87 46 68 Thermal 144 | . 43 . 18 18 65 Explosive 2 | . 1 . . . 1 Electromagnetic 22 | . . . . . 22 Robot Hit Streak 19 | . 6 3 19 7 13 Robot Miss Streak 9 | . 4 . 3 3 9 Penetration Max . | . . . . . . Secondary Targets 5 | . 1 . 2 . 2 Max Gunslinging Chain 1 | . 1 . 1 . 1 Shots Hit Robots 320 | . 68 1 77 60 114 Core Hits 139 | . 28 . 24 28 59 Critical Kills 3 | . 1 . . 1 1 Critical Parts Destroyed 4 | . 1 . . 1 2 Critical Strikes 12 | . 2 . 1 3 6 Burn 1 | . . . 1 . . Destroy 7 | . 2 . . 2 3 Corrupt 2 | . . . . . 2 Sever 2 | . . . . 1 1 Melee Attacks 55 | . . . 20 27 8 Impact . | . . . . . . Slashing 55 | . . . 20 27 8 Piercing . | . . . . . . Sneak Attacks 14 | . . . . 14 . Combat Hostiles 7 | . . . . 7 . Follow-up Attacks . | . . . . . . Damage Inflicted 7620 | . 1135 14 1145 2420 2906 Guns 4608 | . 723 14 1145 658 2068 Cannons 484 | . 391 . . . 93 Explosions 627 | . 21 . . . 606 Melee 1868 | . . . . 1729 139 Ramming 33 | . . . . 33 . Kinetic 3043 | . 723 14 935 450 921 Thermal 1798 | . 391 . 210 208 989 Explosive 502 | . 21 . . . 481 Electromagnetic 376 | . . . . . 376 Impact . | . . . . . . Slashing 1868 | . . . . 1729 139 Piercing . | . . . . . . Highest Corruption 6 | . 3 3 3 . 6 Average Corruption 2 | . 2 3 2 . 2 Corruption Purged 3 | . . . 3 . . Corruption Blocked . | . . . . . . Effects 71 | . 20 30 13 . 8 Message Errors 18 | . 4 11 2 . 1 Matter Fused 17 | . 8 4 3 . 2 Heat Flow Errors 5 | . 3 2 . . . Energy Discharges 10 | . 2 3 4 . 1 Parts Fused 1 | . . 1 . . . Data Loss (minor) 8 | . . 3 2 . 3 Data Loss (major) 4 | . 2 1 1 . . Misfires 3 | . . 3 . . . Alerts 3 | . . 2 . . 1 Weapon Failures 2 | . 1 . 1 . . Overload Shots . | . . . . . . Overflow Damage 380 | . 8 . . 372 . Projectiles 8 | . 8 . . . . Explosions . | . . . . . . Melee 372 | . . . . 372 . Knockbacks . | . . . . . . Impact . | . . . . . . Kinetic . | . . . . . . Secondary . | . . . . . . Self-Inflicted Damage 80 | . . . . . 80 Shots 3 | . . . . . 3 Rammed 1 | . . . . 1 . Targets Rammed 2 | . . . . 2 . Kicked . | . . . . . . Crushed 1 | . . . . 1 . Highest Temperature 428 | . 399 191 36 341 428 Average Temperature 108 | . 82 79 6 109 149 Received Heat Transfer 1180 | . 240 . 114 45 781 Effects 17 | . 5 . . 3 9 Shutdowns 4 | . 1 . . . 3 Energy Bleed 3 | . 2 . . . 1 Interference 7 | . 2 . . 3 2 Short Circuit 2 | . . . . . 2 Damage (minor) 1 | . . . . . 1 Siege Activations . | . . . . . . Robots Corrupted . | . . . . . . Combat Hostiles . | . . . . . . Parts Fried . | . . . . . . Impact Corruptions . | . . . . . . Robots Melted . | . . . . . . Combat Hostiles . | . . . . . . Parts Melted 10 | . 2 . 1 . 7 Heat Transferred 3863 | . 814 . 592 481 1976 Parts Sabotaged 3 | . . . . . 3 Parts Stolen . | . . . . . . Parts Stripped . | . . . . . . Power Chain Reactions . | . . . . . . Alert | -11 -10 -10 -10 -8 -6 ------- Run | Yrd Mat Min Sub Rec Fac Peak Influence 245 | . 137 30 . 146 245 Initial 154 | . . 30 . 13 154 Average 62 | . 74 6 . 60 123 Maximum Alert Level 1 | . . . . . 1 Low Security (%) 98 | 100 100 100 . 100 93 Level 1 1 | . . . . . 6 Level 2 . | . . . . . . Level 3 . | . . . . . . Level 4 . | . . . . . . Level 5 . | . . . . . . High Security . | . . . . . . Max Security . | . . . . . . Squads Dispatched 7 | . 4 . . . 3 Investigation 3 | . 3 . . . . Extermination 2 | . . . . . 2 Reinforcement 2 | . 1 . . . 1 Assault . | . . . . . . Garrison . | . . . . . . Intercept . | . . . . . . Searches Triggered . | . . . . . . Construction Impeded . | . . . . . . Haulers Reinforced . | . . . . . . Active Scanning Responses . | . . . . . . Cargo Convoy Interrupts 1 | . . . . . 1 Stealth | -11 -10 -10 -10 -8 -6 --------- Run | Yrd Mat Min Sub Rec Fac Distress Signals 2 | . 1 . . . 1 Communications Jammed . | . . . . . . Distress Signals . | . . . . . . Times Spotted 84 | . 21 . 22 3 38 Peak Tracking Total 12 | . 3 . 3 2 12 Tactical Retreats 9 | . . . 4 . 5 Traps | -11 -10 -10 -10 -8 -6 ------- Run | Yrd Mat Min Sub Rec Fac Traps Triggered 5 | . 4 . . . 1 Indirectly . | . . . . . . Trap Hack Attempts . | . . . . . . Triggered . | . . . . . . Disarmed . | . . . . . . Reprogrammed . | . . . . . . Reused . | . . . . . . Traps Extracted . | . . . . . . Installed . | . . . . . . Triggered . | . . . . . . Machines | -11 -10 -10 -10 -8 -6 ---------- Run | Yrd Mat Min Sub Rec Fac Machines Disabled 7 | . 2 . 1 . 4 Max in Single Turn 2 | . 1 . 1 . 2 Machines Repaired . | . . . . . . Machines Dismantled . | . . . . . . Machines Sabotaged . | . . . . . . Overloaded Fab Kills . | . . . . . . Hacking | -11 -10 -10 -10 -8 -6 --------- Run | Yrd Mat Min Sub Rec Fac Machines Accessed 22 | . 9 . 2 11 . Terminals 10 | . 6 . . 4 . Fabricators . | . . . . . . Repair Stations 1 | . 1 . . . . Recycling Units 9 | . 2 . . 7 . Scanalyzers . | . . . . . . Garrison Access . | . . . . . . Total Hacks 57 | . 20 . 11 26 . Successful 42 | . 12 . 11 19 . Failed 15 | . 8 . . 7 . Catastrophic 1 | . 1 . . . . Database Lockouts . | . . . . . . Manual . | . . . . . . Terminals 22 | . 11 . . 11 . Fabricators . | . . . . . . Repair Stations 7 | . 7 . . . . Recycling Units 17 | . 2 . . 15 . Scanalyzers . | . . . . . . Garrison Access . | . . . . . . Terminal Hacks 21 | . 4 . 11 6 . Record 11 | . . . 10 1 . Part Schematic 3 | . . . . 3 . Robot Schematic 1 | . . . . 1 . Prototype ID Bank 3 | . 2 . . 1 . Zone Layout 2 | . 2 . . . . Derelict Proto ID Bank 1 | . . . 1 . . Fabricator Hacks . | . . . . . . Repair Station Hacks 6 | . 6 . . . . Scan Component 3 | . 3 . . . . Repair 3 | . 3 . . . . Recycling Unit Hacks 15 | . 2 . . 13 . Report Inventory 13 | . 2 . . 11 . Retrieve Components 2 | . . . . 2 . Scanalyzer . | . . . . . . Garrison Access Hacks . | . . . . . . Unauthorized Hacks . | . . . . . . Terminals . | . . . . . . Fabricators . | . . . . . . Repair Stations . | . . . . . . Recycling Units . | . . . . . . Scanalyzers . | . . . . . . Garrison Access . | . . . . . . Data Cores Recovered . | . . . . . . Used . | . . . . . . Hacking Detections 13 | . 6 . . 7 . Full Trace Events 5 | . 2 . . 3 . Feedback Events . | . . . . . . Feedback Blocked . | . . . . . . Robot Schematics Acquired 1 | . . . . 1 . Robots Built . | . . . . . . Authchips . | . . . . . . Time . | . . . . . . Total Robot Build Rating . | . . . . . . Part Schematics Acquired 3 | . . . . 3 . Parts Built . | . . . . . . Authchips . | . . . . . . Time . | . . . . . . Total Part Build Rating . | . . . . . . Parts Repaired 3 | . 3 . . . . Time 84 | . 84 . . . . Parts Recycled . | . . . . . . Recycled Matter . | . . . . . . Retrieved Matter . | . . . . . . Retrieved Components 5 | . . . . 5 . Parts Scanalyzed . | . . . . . . Part Schematics Acquired . | . . . . . . Parts Damaged . | . . . . . . Bothacking | -11 -10 -10 -10 -8 -6 ------------ Run | Yrd Mat Min Sub Rec Fac Used RIF Installer . | . . . . . . Robots Hacked . | . . . . . . Non-combat . | . . . . . . Combat . | . . . . . . Robot Hacks Applied . | . . . . . . Relay Couplers Released 4 | . . . . . 4 Programmers 4 | . . . . . 4 Fabnet Peak Effective % . | . . . . . . Robots Rewired . | . . . . . . Allies Hacked . | . . . . . . Hacks Repelled . | . . . . . . Allies | -11 -10 -10 -10 -8 -6 -------- Run | Yrd Mat Min Sub Rec Fac Total Allies 3 | . . 3 . . . Largest Group 3 | . . 3 3 . . Highest-Rated Group 40 | . . 40 40 . . Highest-Rated Ally 16 | . . 16 16 . . Total Orders . | . . . . . . Ally Attacks 5 | . . . 5 . . Total Damage 40 | . . . 40 . . Kills 1 | . . . 1 . . Allies Corrupted . | . . . . . . Allies Melted . | . . . . . . Intel | -11 -10 -10 -10 -8 -6 ------- Run | Yrd Mat Min Sub Rec Fac Robot Analysis Total . | . . . . . . Derelict Logs Recovered 4 | . . 2 2 . . Drone Launches 2 | . . . . . 2 Drone Recoveries . | . . . . . . Exploration | -11 -10 -10 -10 -8 -6 ------------- Run | Yrd Mat Min Sub Rec Fac Turns Passed 12623 | 78 2287 1905 5279 1702 1372 Spaces Moved 6086 | 31 1043 757 2727 946 582 Core 78 | 2 . . . . 76 Treads 5680 | 29 1043 757 2727 946 178 Legs 310 | . . . . . 310 Wheels . | . . . . . . Hover . | . . . . . . Flight 18 | . . . . . 18 Fastest Speed 34 | 50 160 240 160 160 34 Average Speed 179 | 152 179 240 169 160 182 Slowest Speed 400 | 160 320 240 240 160 400 Overloaded Moves . | . . . . . . Propulsion Burnouts . | . . . . . . Robots Hopped . | . . . . . . Cave-ins Triggered . | . . . . . . Exploration Rate (%) 67 | 4 98 100 94 99 10 Regions Visited 5 Branch Regions 3 Pre-discovered Areas . | . . . . . . Known Exits Taken 2 | . 1 1 . . . Unknown Exits Taken 3 | 1 . . 1 1 . Scrap Searched 7 | . . 1 6 . . Spaces Dug 15 | . 11 . . 2 2 Terrain Destroyed 20 | . 11 . . 5 4 Melee 4 | . . . . 2 2 Projectile 3 | . . . . 3 . AOE 13 | . 11 . . . 2 Terrain Rammed . | . . . . . . Walls Destroyed . | . . . . . . Machines Disabled . | . . . . . . Actions | -11 -10 -10 -10 -8 -6 --------- Run | Yrd Mat Min Sub Rec Fac Total 7330 | 61 1339 847 3274 1050 759 Wait 727 | 18 161 88 429 8 23 Move 6081 | 30 1042 756 2726 945 582 Hop . | . . . . . . Pick Up 107 | 7 34 1 12 21 32 Fast Attach 6 | 1 . . 2 . 3 Attach 60 | 5 4 . 14 . 37 Detach 11 | . . 2 7 . 2 Swap 41 | . 14 . 11 7 9 Drop 51 | . 16 . 9 16 10 Fire 188 | . 68 . 44 23 53 Melee 55 | . . . 20 27 8 Ram . | . . . . . . Kick . | . . . . . . Crush 2 | . . . . 2 . Escape Stasis . | . . . . . . Rewire 1 | . . . . 1 . Trap . | . . . . . . Miscellaneous . | . . . . . . Route ------- -11/Scrapyard -10/Materials (discovered 5 exits: *Mat x3 / *Min x2) -10/Mines (discovered 3 exits: *Mat x2 / *Sub) -10/Subcaves (discovered 3 exits: [*Mat x2] / *Rec) -8/Recycling -6/Factory History --------- Turn | Location | Event 10 | -11/Scrapyard | Discovered new exit (range 15) 79 | -11/Scrapyard | Entered Materials 234 | -10/Materials | Discovered new exit (range 12) 312 | -10/Materials | Build established: Mutant 337 | -10/Materials | Identified exit to Materials 810 | -10/Materials | Discovered new exit (range 11) 819 | -10/Materials | Discovered new exit (range 16) 824 | -10/Materials | Identified exit to Mines 1015 | -10/Materials | Discovered exit to Materials (range 16) 1781 | -10/Materials | Discovered exit to Materials (range 9) 2087 | -10/Materials | Repaired Autogun 2119 | -10/Materials | Repaired Lgt. Treads 2149 | -10/Materials | Repaired Lgt. Treads 2366 | -10/Materials | Entered Mines 2521 | -10/Mines | Met a Derelict bent on vengeance 2606 | -10/Mines | Identified exit to Subcaves 2609 | -10/Mines | Found a hidden stash of uninstalled traps 3267 | -10/Mines | Discovered exit to Materials (range 8) 3493 | -10/Mines | Discovered exit to Materials (range 8) 3791 | -10/Mines | Assisted by bots powering up and referring to "LRC-V3" 4271 | -10/Mines | Entered Subcaves 4271 | -10/Subcaves | Accompanied by 3 allies 4676 | -10/Subcaves | Shifting Twisted Machinery released Sub. Monowheel 4733 | -10/Subcaves | Visited 4L-MR0's lab 4861 | -10/Subcaves | Shifting Twisted Machinery released Battle Rifle 4980 | -10/Subcaves | A Subdweller sparked back to life 4980 | -10/Subcaves | A Subdweller sparked back to life 4980 | -10/Subcaves | A Subdweller sparked back to life 5013 | -10/Subcaves | Lost 3 allies 5050 | -10/Subcaves | Found Meta Core 5101 | -10/Subcaves | Core integrity fell below 50% 5144 | -10/Subcaves | Attached Meta Core, gained temporary slots: Propulsion, Utility, Weapon 5212 | -10/Subcaves | Discovered new exit (range 14) 5434 | -10/Subcaves | Build established: Skirmisher 5667 | -10/Subcaves | Discovered new exit (range 18) 5710 | -10/Subcaves | Visited Clippyterm 5715 | -10/Subcaves | Learned Factory stockpile data 5894 | -10/Subcaves | Shifting Twisted Machinery released Mak. Power Source 5940 | -10/Subcaves | Shifting Twisted Machinery released Sub. Monowheel 6335 | -10/Subcaves | A swath of the cavern ceiling suddenly collapsed 6959 | -10/Subcaves | Discovered new exit (range 8) 8849 | -10/Subcaves | Shifting Twisted Machinery released Battle Rifle 8886 | -10/Subcaves | Shifting Twisted Machinery released Barrage Gun 9550 | -10/Subcaves | Entered Recycling 9800 | -8/Recycling | Discovered new exit (range 17) 10121 | -8/Recycling | Build established: Gunner 11252 | -8/Recycling | Entered Factory 11252 | -6/Factory | Evolved 8 slots: Power x1, Propulsion x1, Utility x5, Weapon x1 11509 | -6/Factory | Lost 6 parts (2n1u3w) 11728 | -6/Factory | Lost 4 parts (2n2u) 12132 | -6/Factory | Build established: Scavenger-Gunner 12522 | -6/Factory | Cargo convoy interrupted 12545 | -6/Factory | Released all parts (8) 12546 | -6/Factory | Core integrity fell below 50% 12574 | -6/Factory | Lost 12 parts (1p3n5u3w) 12618 | -6/Factory | Core integrity fell below 20% 12624 | -6/Factory | Destroyed by H-66 Slayer with Gauss Rifle Last Messages --------------- 12597_ Xenon Bombardment Thruster destroyed. 12598_ P-60 Hacker destroyed. 12601_ Acquired Xenon Bombardment Thruster. 12602_ Acquired 17 matter. 12603_ P-60 Hacker destroyed. 12606_ Acquired 18 matter. 12606_ Penetrated by Slug. 12612_ Slug penetrates Wall. 12617_ Penetrated by Slug. 12617_ Xenon Bombardment Thruster destroyed. 12619_ Dropped ECM Suite. 12620_ Penetrated by Slug. 12620_ Ripper destroyed. 12621_ Slug penetrates Wall. 12623_ The unstable cave ceiling collapses. 12623_ X-62 Marksman crushed by falling debris. 12623_ X-62 Marksman system corrupted by crushing effect. 12623_ ECM Suite crushed. 12624_ Slug penetrates Door. Map ----- +----------------------------------------------------+ | | | | | | | | | | | | | | | | | | | | | | | | | | | | | | | | | | | ????????????#################?????????????????? | | ????????????# """"" ! #??????########???? | | ????????????# ""T"" #??????# #???? | | ????????????# ! #??????# #???? | | ????????????# ! #??????# #???? | | ????????????# ######## ! #???? | | ????????????# !! o + "# #???? | | ????????????#% !! = # ## [| #???? | | ???????????## !!! @ # #####/####??? | | ???????????# ; ^ #??? | | ???????????## # h ^ #??? | | ????????????###+####+######## h ##?? | | ??????????????# = % #?? | | ??????????????# % #?? | | ??????????????# ^ #?? | | ?????# ###### ####/########### #?? | | ?????+ # #?????# #?? | | ?????# ###### # """ #?????# #?? | | ???????########+## # """ #?????# #?? | | ???????# # # """ #?????# #?? | | ???????# "" "" # # ####### #?? | | ???????# "" "" # # ! + #?? | | ???????# """ """ + + " "" ####### #?? | | ???????# """ """ # # "R"" #?????# #?? | | ???????# """ """ # # """ #?????# #?? | | ???????# = # ##########?????# ##? | | ???????# # # ??? #???????# T#? | | ?????############# # """" #?###???# #? | | ?????# # # """" ### ##### ##? | | ?????# # # """" # # #?? | | ?????# # # """" # !% # #?? | | ?????# # # # # #?? | | ?????# """ """" # # # [ # #?? | +----------------------------------------------------+ Best States ------------- Heat Dissipation 56 Energy Generation 30 Energy Capacity 280 Matter Stores 300 Matter Capacity 300 Sight Range 18 Terrain Scan Density 10 ECM Strength 1 Armor Coverage 300 Evasion (%) 62 Targeting Accuracy 8 Melee Accuracy 8 Target Analysis 5 Recoil Reduction 4 Offensive Hacking 10 Defensive Hacking 10 Item Schematics ----------------- Gauss Rifle | -8/Recycling | Hacked Imp. Heavy Armor Plating | -8/Recycling | Hacked Lightning Gun | -8/Recycling | Hacked Robot Schematics ------------------ R-06 Scavenger | -8/Recycling | Hacked Fabricated ------------ Nothing Alien Tech Used ----------------- None Achievements -------------- None Challenges ------------ None Game ------ Seed HelicalModifiedTrap Manual? 0 Play Time 01:32:31 Cumulative 13.0 hours Start 2024.04.05 @ 16:57:41 End 2024.04.05 @ 18:36:31 Sessions 1 Manual Loads 0 Difficulty Rogue Special Mode None Game No. 10 Rogue 10 Adventurer 0 Explorer 0 Win Type - Total 0 Types 0/0/0/0/0/0/0/0/0 Lore% 14 Gallery% 15 Achievement% 12 Wizard Run 0 Options --------- Layout 1 ASCII 0 Keyboard 0 Movement Mouse Keybinds 0 Fullscreen 1 Font 32/SmallcapsGlow Map View 50x35 Zoom Use 0% Tactical HUD 1 Map Filters NONE Filters NONE Steam 0 RUN: 58dba1a0-8235-457d-aec2-c53a6e9286cd